bitfinex/quotes_BTCUSD_20250711
["timestamp","ask_amount","ask_price","bid_price","bid_amount"]
[1752224704035,0.66907271,117910.0,117900.0,0.67615181]
[1752224704241,0.67755332,117910.0,117900.0,0.67615181]
[1752224704650,0.66059217,117910.0,117900.0,0.67615181]
[1752224705457,0.65919217,117910.0,117900.0,0.67615181]
[1752224705659,0.50803217,117910.0,117900.0,0.67615181]
[1752224705807,0.61589217,117910.0,117900.0,0.67817181]
[1752224706365,0.48593217,117910.0,117900.0,0.67615181]
[1752224706592,0.66049217,117910.0,117900.0,0.67615181]
[1752224706772,0.47745178,117910.0,117900.0,0.67817181]
[1752224706976,0.60237178,117910.0,117900.0,0.68112181]
[1752224709925,0.59220086,117910.0,117900.0,0.68112181]
[1752224711589,0.59220086,117910.0,117900.0,0.68112792]
[1752224711850,0.032441,117910.0,117900.0,0.85358792]
[1752224712065,0.372441,117910.0,117900.0,0.85358792]
[1752224712714,0.347,117910.0,117900.0,0.85358792]
[1752224713313,0.747,117910.0,117900.0,0.85358792]
[1752224714666,0.747,117910.0,117900.0,0.72362792]
[1752224714870,0.747,117910.0,117900.0,0.85358792]
[1752224715518,0.77244,117910.0,117900.0,0.85358792]
[1752224715719,0.9024,117910.0,117900.0,0.85358792]
[1752224715946,0.47696,117910.0,117900.0,0.85358792]
[1752224716171,0.5024,117910.0,117900.0,0.85358792]
[1752224717092,0.47696,117910.0,117900.0,0.85358792]
[1752224717320,0.5024,117910.0,117900.0,0.85358792]
[1752224719872,0.4922294,117910.0,117900.0,0.85358792]
[1752224721459,0.4941894,117910.0,117900.0,0.80809792]
[1752224721908,0.4922294,117910.0,117900.0,0.81104792]
[1752224722757,0.4922294,117910.0,117900.0,0.80974423]
[1752224723186,0.4922294,117910.0,117900.0,0.85604423]
[1752224724279,0.4667894,117910.0,117900.0,0.85604423]
[1752224728864,0.4922294,117910.0,117900.0,0.85604423]
[1752224729089,0.4922294,117910.0,117900.0,0.83354423]
[1752224730019,0.48205889,117910.0,117900.0,0.83354423]
[1752224731629,0.48205889,117910.0,117900.0,0.80974423]
[1752224732308,0.48205889,117910.0,117900.0,0.67982423]
[1752224734765,0.48205889,117910.0,117900.0,0.67687423]
[1752224735195,0.54964989,117910.0,117900.0,0.67485423]
[1752224735406,0.62659921,117910.0,117900.0,0.67485423]
[1752224735643,0.62659936,117910.0,117900.0,0.67485423]
[1752224735821,0.63507997,117910.0,117900.0,0.67485423]
[1752224736162,0.62659928,117910.0,117900.0,0.67485423]
[1752224737919,0.49663928,117910.0,117900.0,0.67485423]
[1752224738126,0.49663921,117910.0,117900.0,0.67485423]
[1752224738332,0.62651921,117910.0,117900.0,0.67485423]
[1752224738537,0.61803882,117910.0,117900.0,0.67485423]
[1752224738742,0.62651921,117910.0,117900.0,0.67485423]
[1752224739160,0.61803882,117910.0,117900.0,0.67485423]
[1752224739596,0.62651928,117910.0,117900.0,0.67485423]
[1752224740032,0.61634808,117910.0,117900.0,0.67485423]
[1752224740240,0.60786762,117910.0,117900.0,0.67485423]
[1752224741475,0.62240847,117910.0,117900.0,0.67485423]
[1752224741682,0.63936947,117910.0,117900.0,0.67485423]
[1752224743894,0.83433685,117910.0,117900.0,0.03513071]
[1752224744501,0.82585631,117910.0,117900.0,0.03513071]
[1752224745321,0.65623542,117910.0,117900.0,0.03513071]
[1752224745518,0.64775438,117910.0,117900.0,0.03513071]
[1752224745669,0.73197935,117910.0,117900.0,0.03513071]
[1752224745871,0.64775438,117910.0,117900.0,0.03513071]
[1752224746564,0.63927341,117910.0,117900.0,0.03513071]
[1752224747215,0.64775438,117910.0,117900.0,0.03513071]
[1752224747423,0.64775431,117910.0,117900.0,0.03513071]
[1752224747824,0.64775431,117910.0,117900.0,0.03263071]
[1752224748253,0.63927312,117910.0,117900.0,0.03263071]
[1752224749188,0.64775402,117910.0,117900.0,0.03263071]
[1752224749652,0.63927312,117910.0,117900.0,0.03263071]
[1752224750531,0.63927312,117910.0,117900.0,0.0290905]
[1752224750733,0.63927305,117910.0,117900.0,0.0290905]
[1752224751142,0.65623463,117910.0,117900.0,0.0290905]
[1752224751703,0.63927305,117910.0,117900.0,0.0290905]
[1752224752102,0.6477538,117910.0,117900.0,0.0290905]
[1752224752307,0.6562347,117910.0,117900.0,0.0290905]
[1752224752852,0.6477538,117910.0,117900.0,0.0290905]
[1752224753056,0.65623462,117910.0,117900.0,0.0290905]
[1752224753633,0.63927305,117910.0,117900.0,0.0290905]
[1752224753825,0.64775373,117910.0,117900.0,0.0290905]
[1752224754363,0.65623455,117910.0,117900.0,0.0290905]
[1752224754783,0.64775373,117910.0,117900.0,0.0290905]
[1752224754943,0.65623455,117910.0,117900.0,0.0290905]
[1752224755143,0.65623448,117910.0,117900.0,0.0290905]
[1752224756145,0.63927305,117910.0,117900.0,0.0290905]
[1752224756704,0.6477538,117910.0,117900.0,0.0290905]
[1752224756905,0.6477538,117910.0,117900.0,0.0264905]
[1752224757542,0.63927305,117910.0,117900.0,0.0264905]
[1752224758418,0.64775373,117910.0,117900.0,0.0264905]
[1752224761627,0.49243198,117910.0,117900.0,0.02648971]
[1752224761826,0.44377198,117910.0,117900.0,0.02853971]
[1752224762199,0.02544,117910.0,117900.0,0.07647971]
[1752224762401,0.02488864,117920.0,117910.0,0.045]
[1752224762603,0.155279,117920.0,117910.0,0.05808311]
[1752224762822,0.365439,117920.0,117910.0,0.06102311]
[1752224763024,0.34,117920.0,117910.0,0.06102311]
[1752224763641,0.342,117920.0,117910.0,0.06102311]
[1752224764855,0.343,117920.0,117910.0,0.06102311]
[1752224765249,0.345,117920.0,117910.0,0.06102311]
[1752224765849,0.346,117920.0,117910.0,0.06102311]
[1752224766255,0.344,117920.0,117910.0,0.06102311]
[1752224766710,0.745,117920.0,117910.0,0.06102311]
[1752224767543,0.741,117920.0,117910.0,0.06102311]
[1752224770099,0.741,117920.0,117910.0,0.0602983]
[1752224772737,0.741,117920.0,117910.0,0.06029204]
[1752224778332,0.741,117920.0,117910.0,0.06028799]
[1752224784098,0.766436,117920.0,117910.0,0.06028799]
[1752224789383,0.75626723,117920.0,117910.0,0.06028799]
[1752224789593,0.75626723,117920.0,117910.0,0.05610381]
[1752224799370,0.74609848,117920.0,117910.0,0.05610381]
[1752224800558,0.74609848,117920.0,117910.0,0.05611056]
[1752224802740,0.74609848,117920.0,117910.0,0.05317056]
[1752224805430,0.74609848,117920.0,117910.0,0.00817056]
[1752224805637,0.74824848,117920.0,117910.0,0.00817056]
[1752224806010,0.74824848,117920.0,117910.0,0.03207056]
[1752224806773,0.75142848,117920.0,117910.0,0.00817056]
[1752224806964,0.75142848,117920.0,117910.0,0.00612056]
[1752224807402,0.80062848,117920.0,117910.0,0.00612056]
[1752224807727,0.95537702,117920.0,117910.0,0.00612056]
[1752224807928,1.0553478,117920.0,117910.0,0.00612056]
[1752224808405,0.0509,117910.0,117900.0,0.0154566]
[1752224808624,0.18277,117910.0,117900.0,0.0154566]
[1752224808835,0.18595,117910.0,117900.0,0.0154566]
[1752224809037,0.21139,117910.0,117900.0,0.0154566]
[1752224810774,0.21139,117910.0,117900.0,0.0174566]
[1752224813301,0.74465952,117910.0,117900.0,0.0174566]
[1752224813543,0.77082042,117910.0,117900.0,0.0174566]
[1752224813887,0.7831038,117910.0,117900.0,0.0174566]
[1752224814072,0.96968641,117910.0,117900.0,0.0154566]
[1752224814318,0.35454085,117900.0,117860.0,0.33308]
[1752224814550,0.35454085,117900.0,117860.0,0.12972]
[1752224814551,0.00196,117870.0,117860.0,0.12972]
[1752224814764,0.3909,117880.0,117850.0,0.0525]
[1752224814978,0.3909,117880.0,117850.0,0.0035]
[1752224814979,0.081538,117870.0,117850.0,0.0035]
[1752224815240,0.34,117860.0,117850.0,0.0004]
[1752224815472,0.34196,117860.0,117850.0,0.0004]
[1752224815675,0.34519,117860.0,117850.0,0.0004]
[1752224816687,0.34519,117860.0,117850.0,0.0024]
[1752224817114,0.34019,117860.0,117850.0,0.0024]
[1752224817270,0.34019,117860.0,117850.0,0.0004]
[1752224817428,0.34019,117860.0,117850.0,0.0024]
[1752224818274,0.36564,117860.0,117850.0,0.0074]
[1752224819150,0.37655384,117860.0,117850.0,0.0074]
[1752224820185,0.40145384,117860.0,117850.0,0.0074]
[1752224820399,0.37655384,117860.0,117850.0,0.0074]
[1752224822086,0.42585384,117860.0,117850.0,0.0074]
[1752224826739,0.42585384,117860.0,117850.0,0.0054]
[1752224827637,0.82585384,117860.0,117850.0,0.0054]
[1752224829125,0.82585384,117860.0,117850.0,0.0004]
[1752224829372,0.82685384,117860.0,117850.0,0.0004]
[1752224833667,0.42685384,117860.0,117850.0,0.0004]
[1752224833935,0.45201605,117860.0,117850.0,0.0004]
[1752224834156,0.85201605,117860.0,117850.0,0.0004]
[1752224835015,0.98173605,117860.0,117850.0,0.0004]
[1752224837323,0.97156168,117860.0,117850.0,0.0004]
[1752224837861,0.57156168,117860.0,117850.0,0.0004]
[1752224845474,0.97156168,117860.0,117850.0,0.0004]
[1752224849286,0.68001652,117860.0,117850.0,0.0004]
[1752224849712,0.6885008,117860.0,117850.0,0.0004]
[1752224849917,0.69698522,117860.0,117850.0,0.0004]
[1752224850138,0.69598522,117860.0,117850.0,0.0004]
[1752224850561,0.6895008,117860.0,117850.0,0.0004]
[1752224850969,0.6905008,117860.0,117850.0,0.0004]
[1752224851198,0.69898522,117860.0,117850.0,0.0004]
[1752224851399,0.6905008,117860.0,117850.0,0.0004]
[1752224852223,0.68201645,117860.0,117850.0,0.0004]
[1752224852437,0.67349246,117860.0,117850.0,0.0004]
[1752224854747,0.69894536,117860.0,117850.0,0.0004]
[1752224854952,0.69046094,117860.0,117850.0,0.0004]
[1752224856213,0.68197659,117860.0,117850.0,0.0004]
[1752224856618,0.67349246,117860.0,117850.0,0.0004]
[1752224857244,0.62415246,117860.0,117850.0,0.0004]
[1752224857456,0.47674161,117860.0,117850.0,0.05636]
[1752224857662,0.38935168,117860.0,117850.0,0.05636]
[1752224857873,0.39074836,117860.0,117850.0,0.05636]
[1752224858096,0.01391384,117860.0,117850.0,0.05636]
[1752224858721,0.01391384,117860.0,117850.0,0.14178993]
[1752224859355,0.003,117860.0,117850.0,0.14178993]
[1752224860191,0.002,117860.0,117850.0,0.14178993]
[1752224860397,0.46964,117900.0,117850.0,0.09088993]
[1752224860601,0.12964,117900.0,117880.0,0.0502]
[1752224860835,0.13175,117900.0,117890.0,0.00202]
[1752224861042,0.47175,117900.0,117890.0,0.00202]
[1752224861461,0.47175,117900.0,117890.0,0.00506]
[1752224861871,0.47375,117900.0,117890.0,0.00506]
[1752224862293,0.47175,117900.0,117890.0,0.00506]
[1752224862804,0.34211,117900.0,117890.0,0.00506]
[1752224862933,0.46964,117900.0,117890.0,0.00506]
[1752224863135,0.34,117900.0,117890.0,0.05516]
[1752224863417,0.35000229,117900.0,117890.0,0.05516]
[1752224863594,0.35400229,117900.0,117890.0,0.05516]
[1752224863998,0.01600229,117900.0,117890.0,0.14058993]
[1752224864870,0.35200229,117900.0,117890.0,0.14058993]
[1752224865075,0.35500229,117900.0,117890.0,0.14058993]
[1752224865276,0.003,117900.0,117890.0,0.14058993]
[1752224865695,0.004,117900.0,117890.0,0.14058993]
[1752224866117,0.003,117900.0,117890.0,0.15097168]
[1752224866330,0.003,117900.0,117890.0,0.14058993]
[1752224866532,0.003,117900.0,117890.0,0.14371055]
[1752224866948,0.74,117930.0,117890.0,0.27118993]
[1752224867245,0.74,117930.0,117920.0,0.0496]
[1752224867613,0.74,117930.0,117920.0,0.05466]
[1752224867817,0.4,117930.0,117920.0,0.14008993]
[1752224868014,0.06785699,117940.0,117920.0,0.14008993]
[1752224868221,0.06785699,117940.0,117930.0,0.05264]
[1752224868445,0.0100628,117940.0,117930.0,0.05466]
[1752224868650,0.0100628,117940.0,117930.0,0.14008993]
[1752224868852,0.4,117950.0,117940.0,0.049]
[1752224869062,0.4,117950.0,117940.0,0.05102]
[1752224869286,0.025428,117970.0,117950.0,0.049]
[1752224869493,0.025428,117970.0,117960.0,0.00506]
[1752224869710,0.0002,117980.0,117960.0,0.00506]
[1752224869930,0.00317,117980.0,117960.0,0.00506]
[1752224870185,0.00211,117970.0,117950.0,0.05204]
[1752224870396,0.35354153,117980.0,117960.0,0.00506]
[1752224870397,0.025625,117980.0,117960.0,0.00506]
[1752224870601,0.001,117970.0,117960.0,0.05266]
[1752224871306,0.001,117970.0,117960.0,0.02896]
[1752224871517,0.001,117970.0,117960.0,0.00506]
[1752224871726,0.003,117970.0,117960.0,0.05266]
[1752224871896,0.002,117970.0,117960.0,0.05266]
[1752224872778,0.002,117970.0,117960.0,0.00506]
[1752224873203,0.00411,117970.0,117960.0,0.00202]
[1752224873373,0.74411,117970.0,117960.0,0.00202]
[1752224874226,0.742,117970.0,117960.0,0.00506]
[1752224874389,0.742,117970.0,117960.0,0.02996]
[1752224874582,0.742,117970.0,117960.0,0.05366]
[1752224875829,0.74405,117970.0,117960.0,0.00506]
[1752224876023,0.74711,117970.0,117950.0,0.00306]
[1752224876238,0.74711,117970.0,117940.0,0.18198]
[1752224876239,0.79581,117970.0,117940.0,0.18198]
[1752224876438,0.79581,117970.0,117940.0,0.05246]
[1752224876638,0.821238,117970.0,117940.0,0.05246]
[1752224877175,0.770538,117970.0,117950.0,0.00406]
[1752224877399,0.87157,117970.0,117960.0,0.00204]
[1752224877611,0.74205,117970.0,117960.0,0.0051]
[1752224877810,0.74,117970.0,117960.0,0.0051]
[1752224878858,0.741,117970.0,117960.0,0.0051]
[1752224879884,0.341,117970.0,117960.0,0.0531]
[1752224880254,0.341,117970.0,117960.0,0.0051]
[1752224880648,0.34305,117970.0,117960.0,0.0051]
[1752224881548,0.34611,117970.0,117950.0,0.02696]
[1752224881747,0.00306,117960.0,117940.0,0.05106]
[1752224881975,0.00306,117960.0,117940.0,0.02696]
[1752224882180,0.00306,117960.0,117940.0,0.00306]
[1752224882748,0.00306,117960.0,117950.0,0.001]
[1752224882954,0.00511,117960.0,117950.0,0.001]
[1752224883153,0.00205,117960.0,117950.0,0.00304]
[1752224883365,0.00205,117960.0,117950.0,0.00204]
[1752224883733,0.3607642,117970.0,117950.0,0.0296]
[1752224883932,0.34,117970.0,117950.0,0.0533]
[1752224884077,0.46948,117970.0,117950.0,0.0533]
[1752224885687,0.46948,117970.0,117950.0,0.0543]
[1752224885883,0.46948,117970.0,117950.0,0.0061]
[1752224886090,0.47254,117970.0,117950.0,0.0051]
[1752224886520,0.47254,117970.0,117950.0,0.0061]
[1752224887414,0.49734,117970.0,117950.0,0.0061]
[1752224888018,0.52124,117970.0,117950.0,0.0061]
[1752224888423,0.00205,117960.0,117950.0,0.00304]
[1752224888831,0.00205,117960.0,117950.0,0.0061]
[1752224889456,0.00205,117960.0,117950.0,0.0051]
[1752224889663,0.00205,117960.0,117950.0,0.0061]
[1752224890912,0.05371,117960.0,117950.0,0.001]
[1752224891327,0.50456993,117960.0,117950.0,0.001]
[1752224891537,0.52152388,117960.0,117950.0,0.001]
[1752224891906,0.0239,117940.0,117920.0,0.00306]
[1752224892115,0.15338,117940.0,117920.0,0.00306]
[1752224892531,0.178814,117940.0,117920.0,0.00306]
[1752224892950,0.181874,117940.0,117920.0,0.00306]
[1752224893149,0.182874,117940.0,117920.0,0.00306]
[1752224893374,0.206174,117940.0,117920.0,0.00306]
[1752224894948,0.00205,117930.0,117910.0,0.02846]
[1752224895194,0.00205,117930.0,117910.0,0.11388993]
[1752224895611,0.00205,117930.0,117910.0,0.00306]
[1752224897065,0.00205,117930.0,117920.0,0.07549517]
[1752224898342,0.00305,117930.0,117920.0,0.07549517]
[1752224899300,0.00405,117930.0,117920.0,0.07549517]
[1752224899508,0.00400999,117930.0,117920.0,0.07549517]
[1752224902742,0.02830999,117930.0,117920.0,0.07549517]
[1752224903374,0.00400999,117930.0,117920.0,0.07549517]
[1752224904528,0.00400999,117930.0,117910.0,0.07355517]
[1752224904740,0.00400999,117930.0,117910.0,0.09875517]
[1752224905245,0.00300999,117930.0,117910.0,0.09875517]
[1752224905610,0.00200999,117930.0,117910.0,0.09875517]
[1752224908354,0.02610999,117930.0,117910.0,0.09875517]
[1752224908562,0.00200999,117930.0,117920.0,0.00529]
[1752224908824,0.602314,117940.0,117920.0,0.00529]
[1752224909932,0.603314,117940.0,117920.0,0.00529]
[1752224910133,0.001,117930.0,117920.0,0.00529]
[1752224910695,0.603314,117940.0,117920.0,0.00529]
[1752224911052,0.604314,117940.0,117920.0,0.00529]
[1752224911698,0.34215,117930.0,117910.0,0.07367517]
[1752224911912,0.39473,117930.0,117910.0,0.07367517]
[1752224912134,0.396267,117930.0,117910.0,0.07367517]
[1752224912344,0.34,117910.0,117900.0,0.17818]
[1752224912577,0.32623021,117910.0,117900.0,0.18347]
[1752224913203,0.33604609,117910.0,117900.0,0.18347]
[1752224913628,0.33604609,117910.0,117900.0,0.25950159]
[1752224914046,0.33604609,117910.0,117900.0,0.26050159]
[1752224914415,0.33604609,117910.0,117900.0,0.13102159]
[1752224915240,0.33604609,117910.0,117900.0,0.13302159]
[1752224915878,0.33604609,117910.0,117900.0,0.22057196]
[1752224916086,0.33604609,117910.0,117900.0,0.21845152]
[1752224916500,0.02818,117950.0,117900.0,0.21845152]
[1752224916704,0.34,117930.0,117920.0,0.0474]
[1752224916907,0.34,117930.0,117920.0,0.05269]
[1752224917985,0.34,117930.0,117920.0,0.05481008]
[1752224918589,0.34979314,117930.0,117920.0,0.05481008]
[1752224918847,0.35079314,117930.0,117920.0,0.05481008]
[1752224919664,0.35179314,117930.0,117920.0,0.05481008]
[1752224919886,0.35179314,117930.0,117920.0,0.05269]
[1752224921186,0.35179314,117930.0,117920.0,0.05481008]
[1752224922595,0.33802456,117930.0,117920.0,0.05481008]
[1752224925717,0.33802456,117930.0,117920.0,0.05269]
[1752224932503,0.32425651,117930.0,117920.0,0.05269]
[1752224933935,0.01179314,117930.0,117920.0,0.05269]
[1752224934184,0.01179314,117930.0,117920.0,0.05481008]
[1752224934730,0.01179314,117930.0,117920.0,0.05269]
[1752224936268,0.01179314,117930.0,117920.0,0.02869]
[1752224937334,0.01179314,117930.0,117920.0,0.00529]
[1752224937914,0.01179314,117930.0,117920.0,0.02899]
[1752224942902,0.01179314,117930.0,117920.0,0.05349]
[1752224943128,0.01179314,117930.0,117920.0,0.05561008]
[1752224944041,0.0507,117940.0,117920.0,0.12952159]
[1752224944245,0.0507,117940.0,117930.0,0.12944]
[1752224944449,0.05268,117940.0,117930.0,0.12944]
[1752224944888,0.06279704,117940.0,117930.0,0.12944]
[1752224945501,0.06679704,117940.0,117930.0,0.12944]
[1752224945905,0.06579704,117940.0,117930.0,0.12944]
[1752224946312,0.06679704,117940.0,117930.0,0.12944]
[1752224948428,0.40679704,117940.0,117930.0,0.12944]
[1752224949152,0.40679704,117940.0,117930.0,0.12948]
[1752224949646,0.35609704,117940.0,117930.0,0.12948]
[1752224949904,0.35609704,117940.0,117930.0,0.13462]
[1752224952055,0.40419704,117940.0,117930.0,0.1315]
[1752224953271,0.37919704,117940.0,117930.0,0.1315]
[1752224953696,0.40279704,117940.0,117930.0,0.1315]
[1752224954104,0.3894293,117940.0,117930.0,0.13462]
[1752224955352,0.3427293,117940.0,117930.0,0.13462]
[1752224955495,0.3527426,117940.0,117930.0,0.13462]
[1752224956331,0.3775426,117940.0,117930.0,0.13462]
[1752224961183,0.3527426,117940.0,117930.0,0.13462]
[1752224962838,0.3527426,117940.0,117930.0,0.13458]
[1752224963960,0.33897491,117940.0,117930.0,0.13458]
[1752224970312,0.33897491,117940.0,117930.0,0.13454]
[1752224972243,0.33897491,117940.0,117930.0,0.00514]
[1752224972445,0.33897491,117940.0,117930.0,0.13454]
[1752224974090,0.32520667,117940.0,117930.0,0.13454]
[1752224980847,0.32520667,117940.0,117930.0,0.00514]
[1752224981099,0.32520667,117940.0,117930.0,0.13454]
[1752224983630,0.34980667,117940.0,117930.0,0.13454]
[1752224984039,0.33603871,117940.0,117930.0,0.13454]
[1752224988423,0.33393871,117940.0,117930.0,0.13454]
[1752224991065,0.30933871,117940.0,117930.0,0.13454]
[1752224994007,0.29557054,117940.0,117930.0,0.13454]
[1752224996714,0.29517054,117940.0,117930.0,0.13454]
[1752224997307,0.29517054,117940.0,117930.0,0.1603599]
[1752224997511,0.29517054,117940.0,117930.0,0.1846599]
[1752224997728,0.0100133,117940.0,117930.0,0.18254]
[1752224997863,0.3500133,117940.0,117930.0,0.18254]
[1752224998060,0.34,117940.0,117930.0,0.18254]
[1752224999402,0.34,117940.0,117930.0,0.18354]
[1752224999606,0.35767752,117940.0,117930.0,0.18354]
[1752225004261,0.34391075,117940.0,117930.0,0.18354]
[1752225004816,0.34391075,117940.0,117930.0,0.13554]
[1752225012285,0.34391075,117940.0,117930.0,0.15864]
[1752225012491,0.34391075,117940.0,117930.0,0.18344]
[1752225014242,0.33014376,117940.0,117930.0,0.18344]
[1752225023544,0.3108708,117940.0,117930.0,0.26886993]
[1752225023748,0.01767752,117940.0,117930.0,0.26886993]
[1752225023948,0.12936,117960.0,117930.0,0.24576993]
[1752225024158,0.4,117950.0,117940.0,0.08850993]
[1752225024482,0.0503,117960.0,117940.0,0.09046993]
[1752225024639,0.0503,117960.0,117950.0,0.12936]
[1752225024854,0.45386,117960.0,117950.0,0.12936]
[1752225025675,0.79386,117960.0,117950.0,0.12936]
[1752225026767,0.0468,117950.0,117940.0,0.12936]
[1752225026963,0.04878,117950.0,117940.0,0.12936]
[1752225027742,0.04878,117950.0,117940.0,0.13253]
[1752225028164,0.75909083,117960.0,117940.0,0.13449]
[1752225028165,0.40601083,117960.0,117940.0,0.13449]
[1752225028362,0.001,117950.0,117940.0,0.13449]
[1752225029144,0.00298,117950.0,117940.0,0.13449]
[1752225029347,0.02618,117950.0,117940.0,0.13449]
[1752225029796,0.05148,117950.0,117940.0,0.12936]
[1752225030222,0.05461,117950.0,117920.0,0.04817]
[1752225030473,0.05461,117950.0,117930.0,0.08542993]
[1752225031432,0.05361,117950.0,117940.0,0.12936]
[1752225033187,0.05048,117950.0,117940.0,0.13132]
[1752225033550,0.05148,117950.0,117940.0,0.13132]
[1752225035450,0.00298,117950.0,117940.0,0.13132]
[1752225035635,0.00298,117950.0,117940.0,0.13449]
[1752225036925,0.02748,117950.0,117940.0,0.13449]
[1752225037120,0.00298,117950.0,117940.0,0.13449]
[1752225038446,0.00298,117950.0,117940.0,0.13132]
[1752225039256,0.00298,117950.0,117940.0,0.13449]
[1752225040200,0.001,117950.0,117940.0,0.13449]
[1752225043847,0.001,117950.0,117940.0,0.15879]
[1752225044403,0.001,117950.0,117940.0,0.26781993]
[1752225044858,0.01751083,117960.0,117950.0,0.047]
[1752225045032,0.01751083,117960.0,117950.0,0.13438993]
[1752225045184,0.546675,117980.0,117950.0,0.13755993]
[1752225045386,0.546675,117980.0,117960.0,0.12932]
[1752225045586,0.546675,117980.0,117960.0,0.13249]
[1752225045819,0.74,117970.0,117960.0,0.13249]
[1752225046021,0.74,117970.0,117960.0,0.13445]
[1752225047055,0.78976,117970.0,117960.0,0.13128]
[1752225048339,0.82227585,117970.0,117960.0,0.13128]
[1752225051099,0.77467585,117970.0,117960.0,0.13128]
[1752225053521,0.79857585,117970.0,117960.0,0.12944]
[1752225053950,0.77467585,117970.0,117960.0,0.13146]
[1752225055692,0.82137585,117970.0,117960.0,0.13146]
[1752225055917,0.77467585,117970.0,117960.0,0.13146]
[1752225056503,0.77467585,117970.0,117960.0,0.1345]
[1752225058824,0.77251585,117970.0,117960.0,0.1345]
[1752225059261,0.77251585,117970.0,117960.0,0.1575]
[1752225059822,0.77251585,117970.0,117960.0,0.1822]
[1752225060429,0.77251585,117970.0,117960.0,0.1575]
[1752225061121,0.77251585,117970.0,117960.0,0.1824]
[1752225062391,0.37251585,117970.0,117960.0,0.1575]
[1752225063796,0.0002,117980.0,117960.0,0.22204929]
[1752225063956,0.0002,117980.0,117970.0,0.13696993]
[1752225064159,0.0002,117980.0,117970.0,0.13898993]
[1752225064357,0.025424,117990.0,117970.0,0.13898993]
[1752225064765,0.365424,117990.0,117980.0,0.12932]
[1752225064961,0.367444,117990.0,117980.0,0.12932]
[1752225065589,0.367444,117990.0,117980.0,0.13438]
[1752225065807,0.39919345,117990.0,117980.0,0.13438]
[1752225065963,0.37376945,117990.0,117980.0,0.13438]
[1752225067588,0.37476945,117990.0,117980.0,0.13438]
[1752225067988,0.37476945,117990.0,117980.0,0.13134]
[1752225069052,0.37476945,117990.0,117980.0,0.00202]
[1752225069250,0.42096945,117990.0,117980.0,0.12944]
[1752225070475,0.08414945,117990.0,117960.0,0.10386005]
[1752225070828,0.3893,117970.0,117960.0,0.12944]
[1752225070980,0.79132,117970.0,117960.0,0.12944]
[1752225071396,0.74202,117970.0,117960.0,0.1345]
[1752225071599,0.74202,117970.0,117960.0,0.00506]
[1752225071797,0.74202,117970.0,117960.0,0.13554]
[1752225072171,0.73750516,117970.0,117960.0,0.13554]
[1752225073100,0.73750516,117970.0,117960.0,0.00606]
[1752225073318,0.73750516,117970.0,117960.0,0.13662]
[1752225073514,0.73750516,117970.0,117960.0,0.13762]
[1752225073912,0.03174945,117990.0,117960.0,0.30128934]
[1752225074089,0.12964,117990.0,117970.0,0.13646993]
[1752225074292,0.13166,117990.0,117980.0,0.00202]
[1752225074498,0.13166,117990.0,117980.0,0.00506]
[1752225074948,0.47166,117990.0,117980.0,0.00506]
[1752225075094,0.47166,117990.0,117980.0,0.00202]
[1752225076229,0.47166,117990.0,117970.0,0.13646993]
[1752225076533,0.36462,117990.0,117970.0,0.13146993]
[1752225076753,0.36562,117990.0,117970.0,0.13146993]
[1752225076954,0.36462,117990.0,117970.0,0.13146993]
[1752225077377,0.36462,117990.0,117970.0,0.13246993]
[1752225077524,0.39624763,117990.0,117970.0,0.13246993]
[1752225078012,0.41914763,117990.0,117970.0,0.08946993]
[1752225078177,0.42232763,117990.0,117970.0,0.08946993]
[1752225078826,0.04948,117980.0,117970.0,0.001]
[1752225079022,0.0515,117980.0,117970.0,0.13064]
[1752225079552,0.18114,117980.0,117970.0,0.001]
[1752225080099,0.3866,117970.0,117950.0,0.20880005]
[1752225080297,0.3866,117970.0,117950.0,0.29422998]
[1752225080298,0.38878,117970.0,117950.0,0.29422998]
[1752225080870,0.00202,117960.0,117950.0,0.29624998]
[1752225081249,0.00202,117960.0,117950.0,0.29824998]
[1752225081450,0.3856,117970.0,117950.0,0.29824998]
[1752225081610,0.3856,117970.0,117950.0,0.29624998]
[1752225083058,0.3856,117970.0,117950.0,0.29924998]
[1752225083229,0.7856,117970.0,117950.0,0.29924998]
[1752225083436,0.7856,117970.0,117950.0,0.30124998]
[1752225083927,0.7856,117970.0,117950.0,0.29924998]
[1752225084264,0.7856,117970.0,117950.0,0.30124998]
[1752225084469,0.7856,117970.0,117950.0,0.32544998]
[1752225084893,0.7625,117970.0,117950.0,0.34600998]
[1752225085106,0.7625,117970.0,117960.0,0.00322]
[1752225085296,0.86864,117970.0,117960.0,0.00536]
[1752225086808,0.739,117970.0,117960.0,0.00536]
[1752225087204,0.739,117970.0,117960.0,0.00836]
[1752225087407,0.339,117970.0,117960.0,0.05646]
[1752225088550,0.339,117970.0,117960.0,0.13258005]
[1752225089742,0.339,117970.0,117960.0,0.08448005]
[1752225090164,0.38788,117970.0,117960.0,0.20876005]
[1752225090563,0.36348,117970.0,117960.0,0.20876005]
[1752225090904,0.36348,117970.0,117960.0,0.21198005]
[1752225092783,0.36348,117970.0,117960.0,0.21412005]
[1752225094450,0.36348,117970.0,117960.0,0.138]
[1752225095981,0.34098,117970.0,117960.0,0.138]
[1752225097106,0.34098,117970.0,117960.0,0.21412005]
[1752225097536,0.339,117970.0,117960.0,0.21412005]
[1752225098752,0.339,117970.0,117960.0,0.26212005]
[1752225099654,0.339,117970.0,117960.0,0.21412005]
[1752225105305,0.34098,117970.0,117960.0,0.21412005]
[1752225112894,0.34098,117970.0,117960.0,0.07948005]
[1752225114146,0.34098,117970.0,117960.0,0.20892005]
[1752225122899,0.339,117970.0,117960.0,0.20892005]
[1752225123114,0.32907437,117970.0,117960.0,0.34014998]
[1752225123534,0.32907437,117970.0,117960.0,0.26402993]
[1752225125873,0.32907437,117970.0,117960.0,0.3706703]
[1752225131348,0.32907437,117970.0,117960.0,0.26402993]
[1752225133029,0.3191496,117970.0,117960.0,0.3706703]
[1752225141258,0.3191496,117970.0,117960.0,0.26402993]
[1752225143050,0.3191496,117970.0,117960.0,0.3706703]
[1752225143244,0.48094963,117990.0,117960.0,0.3248703]
[1752225143438,0.34,117980.0,117970.0,0.20885728]